[Event "*** Titled Tuesday Blitz"]
[Site "Chess.com"]
[Date "2021.04.27"]
[Round "7"]
[White "Bad_left_hook"]
[Black "Srisshhhtea"]
[Result "1-0"]
[WhiteElo "2562"]
[BlackElo "2337"]
[TimeControl "180+1"]
[EndTime "11:16:23 PDT"]
[Termination "Bad_left_hook won by resignation"]

1. d4 {[%clk 0:03:00.9]} 1... d5 {[%clk 0:02:59.4]} 2. c4 {[%clk 0:03:01.1]}
2... e6 {[%clk 0:02:59.2]} 3. Nc3 {[%clk 0:03:00.5]} 3... Be7 {[%clk 0:02:58.7]}
4. cxd5 {[%clk 0:03:00.9]} 4... exd5 {[%clk 0:02:58.4]} 5. Bf4 {[%clk
0:03:01.5]} 5... c6 {[%clk 0:02:57.5]} 6. Qc2 {[%clk 0:02:57.2]} 6... Bd6 {[%clk
0:02:57.5]} 7. Bxd6 {[%clk 0:02:56.8]} 7... Qxd6 {[%clk 0:02:58.4]} 8. e3 {[%clk
0:02:57.1]} 8... Ne7 {[%clk 0:02:57.5]} 9. Bd3 {[%clk 0:02:56.4]} 9... Nd7
{[%clk 0:02:54.9]} 10. Nf3 {[%clk 0:02:55.6]} 10... Ng6 {[%clk 0:02:51.3]} 11.
O-O-O {[%clk 0:02:54.1]} 11... a5 {[%clk 0:02:47.2]} 12. Kb1 {[%clk 0:02:52.3]}
12... a4 {[%clk 0:02:45.8]} 13. Rde1 {[%clk 0:02:43.5]} 13... a3 {[%clk
0:02:44.5]} 14. b3 {[%clk 0:02:43.1]} 14... O-O {[%clk 0:02:26.4]} 15. h4 {[%clk
0:02:41.3]} 15... Re8 {[%clk 0:02:18.6]} 16. Ng5 {[%clk 0:02:31.1]} 16... h6
{[%clk 0:01:56.1]} 17. h5 {[%clk 0:02:24.5]} 17... Ngf8 {[%clk 0:01:53.5]} 18.
Bh7+ {[%clk 0:02:07.4]} 18... Nxh7 {[%clk 0:01:45.2]} 19. Qxh7+ {[%clk
0:02:08.3]} 19... Kf8 {[%clk 0:01:45.1]} 20. e4 {[%clk 0:02:08.3]} 20... hxg5
{[%clk 0:01:28.6]} 21. Qh8+ {[%clk 0:01:59.9]} 21... Ke7 {[%clk 0:01:27]} 22.
exd5+ {[%clk 0:02:00]} 22... Ne5 {[%clk 0:01:22.1]} 23. Qxg7 {[%clk 0:01:45]}
23... Bf5+ {[%clk 0:01:01.1]} 24. Ka1 {[%clk 0:01:42.9]} 24... Qb4 {[%clk
0:00:56.2]} 25. Qxe5+ {[%clk 0:01:31.6]} 25... Be6 {[%clk 0:00:36.6]} 26. Qg3
{[%clk 0:01:14.6]} 26... Qxd4 {[%clk 0:00:23.9]} 27. dxe6 {[%clk 0:01:12.6]}
27... fxe6 {[%clk 0:00:21.4]} 28. Qxg5+ {[%clk 0:01:06.4]} 28... Kf7 {[%clk
0:00:20.5]} 29. Re3 {[%clk 0:00:53]} 29... e5 {[%clk 0:00:18]} 30. Rf3+ {[%clk
0:00:47.8]} 30... Ke6 {[%clk 0:00:17.8]} 31. Qg6+ {[%clk 0:00:47.2]} 31... Kd7
{[%clk 0:00:17.9]} 32. Rd3 {[%clk 0:00:46.9]} 32... Kc7 {[%clk 0:00:15.8]} 33.
Rxd4 {[%clk 0:00:45]} 33... exd4 {[%clk 0:00:16.7]} 34. Ne4 {[%clk 0:00:45.3]}
34... Rad8 {[%clk 0:00:16.5]} 35. Rd1 {[%clk 0:00:42.6]} 35... d3 {[%clk
0:00:16.3]} 36. Nc5 {[%clk 0:00:41.8]} 36... d2 {[%clk 0:00:16.5]} 37. Ne6+
{[%clk 0:00:38.7]} 37... Kb6 {[%clk 0:00:14.3]} 38. Nxd8 {[%clk 0:00:38.1]}
38... Re1 {[%clk 0:00:13.7]} 39. Qc2 {[%clk 0:00:37.3]} 39... Rxd1+ {[%clk
0:00:13.8]} 40. Qxd1 {[%clk 0:00:37.2]} 1-0

[Event "*** Titled Tuesday Blitz"]
[Site "Chess.com"]
[Date "2021.04.27"]
[Round "7"]
[White "H3nriqueTV"]
[Black "AntonovaNadezhda"]
[Result "1-0"]
[WhiteElo "2320"]
[BlackElo "2116"]
[TimeControl "180+1"]
[EndTime "11:16:26 PDT"]
[Termination "H3nriqueTV won on time"]

1. e4 {[%clk 0:03:00.9]} 1... c5 {[%clk 0:02:58.9]} 2. Nf3 {[%clk 0:02:58.3]}
2... d6 {[%clk 0:02:56.6]} 3. Nc3 {[%clk 0:02:58.1]} 3... Nf6 {[%clk 0:02:55.2]}
4. d4 {[%clk 0:02:58.5]} 4... cxd4 {[%clk 0:02:55.5]} 5. Nxd4 {[%clk 0:02:59.4]}
5... a6 {[%clk 0:02:55.5]} 6. Be2 {[%clk 0:02:59.3]} 6... e5 {[%clk 0:02:55.3]}
7. Nb3 {[%clk 0:02:59.1]} 7... Be7 {[%clk 0:02:54.3]} 8. Be3 {[%clk 0:03:00]}
8... Be6 {[%clk 0:02:52.9]} 9. O-O {[%clk 0:03:00.5]} 9... Nbd7 {[%clk
0:02:52.6]} 10. a4 {[%clk 0:03:01.1]} 10... Rc8 {[%clk 0:02:51.4]} 11. Bf3
{[%clk 0:03:01.3]} 11... O-O {[%clk 0:02:49.1]} 12. a5 {[%clk 0:03:01]} 12...
Qc7 {[%clk 0:02:46.8]} 13. Re1 {[%clk 0:02:58.7]} 13... h6 {[%clk 0:02:42.2]}
14. h3 {[%clk 0:02:55.3]} 14... Rfd8 {[%clk 0:02:40.7]} 15. Nd2 {[%clk
0:02:41.2]} 15... Nb8 {[%clk 0:02:23.4]} 16. Bb6 {[%clk 0:02:40.6]} 16... Qc6
{[%clk 0:02:19.3]} 17. Bxd8 {[%clk 0:02:40.5]} 17... Rxd8 {[%clk 0:02:19.3]} 18.
Nf1 {[%clk 0:02:41.2]} 18... d5 {[%clk 0:02:07.1]} 19. exd5 {[%clk 0:02:41.3]}
19... Nxd5 {[%clk 0:02:07.1]} 20. Nxd5 {[%clk 0:02:27.5]} 20... Bxd5 {[%clk
0:02:07.1]} 21. Bxd5 {[%clk 0:02:27.8]} 21... Rxd5 {[%clk 0:02:07]} 22. Qf3
{[%clk 0:02:25.7]} 22... Rb5 {[%clk 0:01:39.7]} 23. Qxc6 {[%clk 0:02:22.1]}
23... Nxc6 {[%clk 0:01:39.7]} 24. b3 {[%clk 0:02:22.1]} 24... Nxa5 {[%clk
0:01:36.2]} 25. Ne3 {[%clk 0:02:19.5]} 25... Nc6 {[%clk 0:01:17.5]} 26. Rad1
{[%clk 0:02:09.7]} 26... Nd4 {[%clk 0:01:12.4]} 27. Nc4 {[%clk 0:02:07.3]} 27...
Bf6 {[%clk 0:01:07.1]} 28. Rd2 {[%clk 0:01:54.9]} 28... Rc5 {[%clk 0:01:00.8]}
29. Ne3 {[%clk 0:01:31.2]} 29... Bg5 {[%clk 0:00:54.2]} 30. Red1 {[%clk
0:01:19.2]} 30... h5 {[%clk 0:00:42.7]} 31. b4 {[%clk 0:01:00.9]} 31... Rc6
{[%clk 0:00:15.3]} 32. c4 {[%clk 0:00:41.8]} 32... f6 {[%clk 0:00:05.5]} 33. Rb1
{[%clk 0:00:34.6]} 33... Nf5 {[%clk 0:00:03.1]} 34. c5 {[%clk 0:00:32.6]} 34...
Nxe3 {[%clk 0:00:02.4]} 35. Rd8+ {[%clk 0:00:31.7]} 35... Kh7 {[%clk 0:00:01]}
36. fxe3 {[%clk 0:00:32.3]} 1-0

[Event "*** Titled Tuesday Blitz"]
[Site "Chess.com"]
[Date "2021.04.27"]
[Round "7"]
[White "halldorgretar"]
[Black "chesslh19"]
[Result "0-1"]
[WhiteElo "2123"]
[BlackElo "2269"]
[TimeControl "180+1"]
[EndTime "11:16:30 PDT"]
[Termination "chesslh19 won on time"]

1. d4 {[%clk 0:02:54.2]} 1... Nf6 {[%clk 0:02:59.3]} 2. c4 {[%clk 0:02:50.9]}
2... e6 {[%clk 0:02:59.1]} 3. Nf3 {[%clk 0:02:50.1]} 3... d5 {[%clk 0:02:58]} 4.
g3 {[%clk 0:02:50]} 4... dxc4 {[%clk 0:02:55.3]} 5. Bg2 {[%clk 0:02:45.6]} 5...
Be7 {[%clk 0:02:55.3]} 6. O-O {[%clk 0:02:45.2]} 6... O-O {[%clk 0:02:55.5]} 7.
Ne5 {[%clk 0:02:44.9]} 7... Nc6 {[%clk 0:02:55.5]} 8. Nxc6 {[%clk 0:02:34.2]}
8... bxc6 {[%clk 0:02:56.4]} 9. Na3 {[%clk 0:02:33.3]} 9... Bxa3 {[%clk
0:02:56.5]} 10. bxa3 {[%clk 0:02:32.4]} 10... Ba6 {[%clk 0:02:57]} 11. Qd2
{[%clk 0:02:25.3]} 11... Rb8 {[%clk 0:02:48.8]} 12. Qa5 {[%clk 0:02:21.9]} 12...
Qc8 {[%clk 0:02:48.4]} 13. Bd2 {[%clk 0:01:53.5]} 13... c3 {[%clk 0:02:16]} 14.
Bxc3 {[%clk 0:01:52.4]} 14... Bxe2 {[%clk 0:02:16]} 15. Rfc1 {[%clk 0:01:23.8]}
15... Nd5 {[%clk 0:01:56.3]} 16. Bxd5 {[%clk 0:01:07.3]} 16... exd5 {[%clk
0:01:28.7]} 17. Re1 {[%clk 0:00:33.8]} 17... Bf3 {[%clk 0:00:38.7]} 18. Re3
{[%clk 0:00:32.3]} 18... Qf5 {[%clk 0:00:38.5]} 19. Rae1 {[%clk 0:00:25.6]}
19... Rb1 {[%clk 0:00:26.8]} 20. Qc5 {[%clk 0:00:24.2]} 20... Rxe1+ {[%clk
0:00:22.8]} 21. Bxe1 {[%clk 0:00:22.8]} 21... Be4 {[%clk 0:00:14.9]} 22. Bb4
{[%clk 0:00:10.6]} 22... Rc8 {[%clk 0:00:08.2]} 23. Qxc6 {[%clk 0:00:08.9]}
23... h5 {[%clk 0:00:06.5]} 24. Qc3 {[%clk 0:00:05.2]} 24... h4 {[%clk 0:00:06]}
25. f3 {[%clk 0:00:04.5]} 25... Bb1 {[%clk 0:00:04.2]} 26. Qe1 {[%clk
0:00:02.8]} 26... Qc2 {[%clk 0:00:03.4]} 0-1

[Event "*** Titled Tuesday Blitz"]
[Site "Chess.com"]
[Date "2021.04.27"]
[Round "7"]
[White "Nikolaj_6"]
[Black "IANOV0007"]
[Result "1-0"]
[WhiteElo "2656"]
[BlackElo "2475"]
[TimeControl "180+1"]
[EndTime "11:16:35 PDT"]
[Termination "Nikolaj_6 won on time"]

1. e4 {[%clk 0:02:57.7]} 1... d6 {[%clk 0:02:59.5]} 2. d4 {[%clk 0:02:57.3]}
2... Nf6 {[%clk 0:02:59.3]} 3. Nd2 {[%clk 0:02:56.3]} 3... e5 {[%clk 0:02:58.1]}
4. c3 {[%clk 0:02:55.7]} 4... Nc6 {[%clk 0:02:56.3]} 5. Ngf3 {[%clk 0:02:54.8]}
5... Be7 {[%clk 0:02:53.8]} 6. Bb5 {[%clk 0:02:53.7]} 6... exd4 {[%clk
0:02:46.1]} 7. cxd4 {[%clk 0:02:53.2]} 7... O-O {[%clk 0:02:44]} 8. O-O {[%clk
0:02:52.9]} 8... Bg4 {[%clk 0:02:42.7]} 9. Qc2 {[%clk 0:02:37]} 9... Nb4 {[%clk
0:02:35.3]} 10. Qb1 {[%clk 0:02:31.5]} 10... a6 {[%clk 0:02:29.4]} 11. Be2
{[%clk 0:02:29.9]} 11... c5 {[%clk 0:02:28.4]} 12. d5 {[%clk 0:02:26.5]} 12...
a5 {[%clk 0:02:20.1]} 13. a3 {[%clk 0:02:26]} 13... Na6 {[%clk 0:02:19.4]} 14.
h3 {[%clk 0:02:18.8]} 14... Bh5 {[%clk 0:02:18.1]} 15. Re1 {[%clk 0:02:18.1]}
15... Nc7 {[%clk 0:02:13.1]} 16. a4 {[%clk 0:02:17.1]} 16... Re8 {[%clk
0:02:10.2]} 17. b3 {[%clk 0:02:10.6]} 17... Bf8 {[%clk 0:02:08.2]} 18. Bb2
{[%clk 0:02:08.4]} 18... Bg6 {[%clk 0:02:06.6]} 19. Bd3 {[%clk 0:01:54.2]} 19...
Nd7 {[%clk 0:02:00.8]} 20. Nc4 {[%clk 0:01:47.1]} 20... Na6 {[%clk 0:01:57.7]}
21. e5 {[%clk 0:01:40.5]} 21... Bxd3 {[%clk 0:01:55.2]} 22. Qxd3 {[%clk
0:01:40]} 22... Nb4 {[%clk 0:01:55]} 23. Qd2 {[%clk 0:01:14.7]} 23... Nxe5
{[%clk 0:01:52.9]} 24. Nfxe5 {[%clk 0:01:12.9]} 24... dxe5 {[%clk 0:01:52.6]}
25. d6 {[%clk 0:01:12.1]} 25... f6 {[%clk 0:01:44.7]} 26. Rad1 {[%clk
0:01:09.7]} 26... Ra6 {[%clk 0:01:39.3]} 27. f4 {[%clk 0:01:08.7]} 27... e4
{[%clk 0:01:26.5]} 28. Bc3 {[%clk 0:01:05.1]} 28... Nd3 {[%clk 0:01:06.6]} 29.
Rxe4 {[%clk 0:00:55.8]} 29... Rxe4 {[%clk 0:01:03]} 30. Qxd3 {[%clk 0:00:56]}
30... f5 {[%clk 0:00:33.3]} 31. Qd5+ {[%clk 0:00:54.8]} 31... Kh8 {[%clk
0:00:32.9]} 32. Ne5 {[%clk 0:00:38.3]} 32... Rxe5 {[%clk 0:00:07.7]} 33. fxe5
{[%clk 0:00:37.8]} 33... Rc6 {[%clk 0:00:04.7]} 34. d7 {[%clk 0:00:31.8]} 34...
Be7 {[%clk 0:00:02.9]} 35. Bxa5 {[%clk 0:00:22.1]} 1-0

[Event "*** Titled Tuesday Blitz"]
[Site "Chess.com"]
[Date "2021.04.27"]
[Round "7"]
[White "microbear"]
[Black "catzapto"]
[Result "1-0"]
[WhiteElo "2174"]
[BlackElo "2094"]
[TimeControl "180+1"]
[EndTime "11:16:40 PDT"]
[Termination "microbear won on time"]

1. e4 {[%clk 0:03:00.9]} 1... d5 {[%clk 0:02:53.1]} 2. exd5 {[%clk 0:02:59.8]}
2... Qxd5 {[%clk 0:02:54]} 3. Nc3 {[%clk 0:02:59.7]} 3... Qa5 {[%clk 0:02:53.4]}
4. d4 {[%clk 0:03:00.1]} 4... c6 {[%clk 0:02:48.6]} 5. Nf3 {[%clk 0:03:00.1]}
5... Nf6 {[%clk 0:02:48.3]} 6. Ne5 {[%clk 0:03:00.3]} 6... Bf5 {[%clk
0:02:37.3]} 7. Be2 {[%clk 0:02:47.3]} 7... Nbd7 {[%clk 0:02:33.8]} 8. Nc4 {[%clk
0:02:46.8]} 8... Qc7 {[%clk 0:02:31.8]} 9. a4 {[%clk 0:02:44]} 9... e6 {[%clk
0:02:27.2]} 10. O-O {[%clk 0:02:39.3]} 10... Nb6 {[%clk 0:02:24.3]} 11. Ne5
{[%clk 0:02:37.2]} 11... Nbd7 {[%clk 0:02:23.3]} 12. Bf4 {[%clk 0:02:36.7]}
12... Bd6 {[%clk 0:02:15.6]} 13. Nxd7 {[%clk 0:02:21.1]} 13... Bxf4 {[%clk
0:02:13.2]} 14. Nxf6+ {[%clk 0:02:21.2]} 14... gxf6 {[%clk 0:02:14.1]} 15. g3
{[%clk 0:02:19.8]} 15... Rg8 {[%clk 0:02:03.6]} 16. Kh1 {[%clk 0:02:18.9]} 16...
Bd6 {[%clk 0:01:02.5]} 17. Bf3 {[%clk 0:02:11.1]} 17... h5 {[%clk 0:00:57.6]}
18. Ne4 {[%clk 0:02:05.9]} 18... Be7 {[%clk 0:00:43.6]} 19. Re1 {[%clk
0:01:55.9]} 19... h4 {[%clk 0:00:41.9]} 20. Kg2 {[%clk 0:01:13.8]} 20... hxg3
{[%clk 0:00:33.1]} 21. hxg3 {[%clk 0:01:10.3]} 21... O-O-O {[%clk 0:00:33.4]}
22. c3 {[%clk 0:01:02.9]} 22... Bxe4 {[%clk 0:00:30.5]} 23. Bxe4 {[%clk
0:01:02.8]} 23... f5 {[%clk 0:00:30.5]} 24. Bc2 {[%clk 0:00:59.7]} 24... f4
{[%clk 0:00:27.7]} 25. Qf3 {[%clk 0:00:59.4]} 25... fxg3 {[%clk 0:00:25.6]} 26.
fxg3 {[%clk 0:00:59.9]} 26... Bd6 {[%clk 0:00:20.5]} 27. g4 {[%clk 0:00:32.1]}
27... f5 {[%clk 0:00:20.5]} 28. Rxe6 {[%clk 0:00:27.4]} 28... Rxg4+ {[%clk
0:00:20.2]} 29. Kf2 {[%clk 0:00:22.5]} 29... Rdg8 {[%clk 0:00:20.2]} 30. Bxf5
{[%clk 0:00:20.9]} 30... Rg2+ {[%clk 0:00:17.8]} 31. Qxg2 {[%clk 0:00:19.6]}
31... Rxg2+ {[%clk 0:00:16.7]} 32. Kxg2 {[%clk 0:00:20.2]} 32... Kd8 {[%clk
0:00:09.8]} 33. Rae1 {[%clk 0:00:12]} 33... Qf7 {[%clk 0:00:01.1]} 34. Rxd6+
{[%clk 0:00:10.3]} 1-0

[Event "*** Titled Tuesday Blitz"]
[Site "Chess.com"]
[Date "2021.04.27"]
[Round "7"]
[White "anon569"]
[Black "Caterpiller35"]
[Result "1-0"]
[WhiteElo "2268"]
[BlackElo "2475"]
[TimeControl "180+1"]
[EndTime "11:16:43 PDT"]
[Termination "anon569 won on time"]

1. e4 {[%clk 0:03:00.9]} 1... c5 {[%clk 0:02:51.5]} 2. Nf3 {[%clk 0:02:58]} 2...
Nc6 {[%clk 0:02:52]} 3. d4 {[%clk 0:02:57.2]} 3... cxd4 {[%clk 0:02:52.9]} 4.
Nxd4 {[%clk 0:02:57.7]} 4... e5 {[%clk 0:02:53.6]} 5. Nb5 {[%clk 0:02:56.6]}
5... d6 {[%clk 0:02:53.8]} 6. N1c3 {[%clk 0:02:55.6]} 6... a6 {[%clk 0:02:54]}
7. Na3 {[%clk 0:02:53.3]} 7... b5 {[%clk 0:02:54.9]} 8. Nd5 {[%clk 0:02:52.1]}
8... Nge7 {[%clk 0:02:55.4]} 9. Be3 {[%clk 0:02:30.1]} 9... Nxd5 {[%clk
0:02:54.6]} 10. exd5 {[%clk 0:02:29.2]} 10... Ne7 {[%clk 0:02:54.8]} 11. c4
{[%clk 0:02:29]} 11... g6 {[%clk 0:02:54.9]} 12. cxb5 {[%clk 0:02:25.1]} 12...
Bg7 {[%clk 0:02:55.2]} 13. bxa6 {[%clk 0:02:21.5]} 13... O-O {[%clk 0:02:55.3]}
14. Bc4 {[%clk 0:02:19.2]} 14... Nf5 {[%clk 0:02:50.5]} 15. O-O {[%clk 0:02:17]}
15... e4 {[%clk 0:02:47.2]} 16. Qe2 {[%clk 0:02:03.2]} 16... Nxe3 {[%clk
0:02:32.4]} 17. fxe3 {[%clk 0:02:01.8]} 17... Qb6 {[%clk 0:02:32.5]} 18. Nb5
{[%clk 0:01:54.3]} 18... Bxa6 {[%clk 0:02:28.5]} 19. a4 {[%clk 0:01:53.7]} 19...
Rfc8 {[%clk 0:02:15.3]} 20. Rac1 {[%clk 0:01:48.5]} 20... Bh6 {[%clk 0:02:03.6]}
21. Rfe1 {[%clk 0:01:09.9]} 21... Bxb5 {[%clk 0:02:01]} 22. axb5 {[%clk
0:01:09.5]} 22... Ra4 {[%clk 0:01:37.6]} 23. b3 {[%clk 0:01:06.1]} 23... Ra3
{[%clk 0:01:37]} 24. Kh1 {[%clk 0:01:00.8]} 24... Qa5 {[%clk 0:01:31.1]} 25. Rf1
{[%clk 0:00:52.3]} 25... f5 {[%clk 0:01:15.3]} 26. Qf2 {[%clk 0:00:40.2]} 26...
Ra2 {[%clk 0:01:09.4]} 27. Qg3 {[%clk 0:00:39.4]} 27... Qd2 {[%clk 0:01:04.9]}
28. Rce1 {[%clk 0:00:38.3]} 28... Bg7 {[%clk 0:00:53.2]} 29. Re2 {[%clk
0:00:33]} 29... Qa5 {[%clk 0:00:40.5]} 30. Qxd6 {[%clk 0:00:20.3]} 30... Ra8
{[%clk 0:00:28.7]} 31. Rxa2 {[%clk 0:00:16.9]} 31... Qxa2 {[%clk 0:00:29.6]} 32.
b6 {[%clk 0:00:16.9]} 32... Qa3 {[%clk 0:00:02.2]} 33. b7 {[%clk 0:00:12.8]} 1-0

[Event "*** Titled Tuesday Blitz"]
[Site "Chess.com"]
[Date "2021.04.27"]
[Round "7"]
[White "adnan_nn"]
[Black "exoticprincess"]
[Result "1-0"]
[WhiteElo "2700"]
[BlackElo "2901"]
[TimeControl "180+1"]
[EndTime "11:16:44 PDT"]
[Termination "adnan_nn won by resignation"]

1. e4 {[%clk 0:03:00.9]} 1... c6 {[%clk 0:02:59.9]} 2. d4 {[%clk 0:03:00.6]}
2... d5 {[%clk 0:02:58.3]} 3. exd5 {[%clk 0:03:01.5]} 3... cxd5 {[%clk
0:02:56.3]} 4. c4 {[%clk 0:03:02.1]} 4... Nc6 {[%clk 0:02:57.2]} 5. Nc3 {[%clk
0:03:02.3]} 5... e6 {[%clk 0:02:54.4]} 6. Nf3 {[%clk 0:02:56.2]} 6... Be7 {[%clk
0:02:49.9]} 7. cxd5 {[%clk 0:02:53.3]} 7... exd5 {[%clk 0:02:43.8]} 8. h3 {[%clk
0:02:51.8]} 8... Nf6 {[%clk 0:02:35.7]} 9. Bd3 {[%clk 0:02:51.2]} 9... O-O
{[%clk 0:02:32.7]} 10. O-O {[%clk 0:02:51]} 10... Re8 {[%clk 0:02:29.3]} 11. Re1
{[%clk 0:02:49.2]} 11... h6 {[%clk 0:02:16.8]} 12. a3 {[%clk 0:02:47.7]} 12...
Bd6 {[%clk 0:02:12.5]} 13. Be3 {[%clk 0:02:45.6]} 13... Ne7 {[%clk 0:01:59.5]}
14. Qc2 {[%clk 0:02:39.7]} 14... Be6 {[%clk 0:01:50]} 15. Re2 {[%clk 0:02:33.2]}
15... Rc8 {[%clk 0:01:45.3]} 16. Rae1 {[%clk 0:02:31.8]} 16... Bb8 {[%clk
0:01:37.6]} 17. Ne5 {[%clk 0:02:25.8]} 17... Ne4 {[%clk 0:01:23.1]} 18. Bf4
{[%clk 0:01:44.8]} 18... f6 {[%clk 0:01:16.6]} 19. Bxh6 {[%clk 0:00:32.8]} 19...
fxe5 {[%clk 0:01:10.2]} 20. Bxe4 {[%clk 0:00:32.6]} 20... dxe4 {[%clk
0:01:08.8]} 21. Bg5 {[%clk 0:00:32.9]} 21... exd4 {[%clk 0:01:01.1]} 22. Rxe4
{[%clk 0:00:32.8]} 22... dxc3 {[%clk 0:00:32.1]} 23. Rxe6 {[%clk 0:00:29]} 23...
Qc7 {[%clk 0:00:32]} 24. g3 {[%clk 0:00:26.3]} 24... cxb2 {[%clk 0:00:30.3]} 25.
Qxb2 {[%clk 0:00:27]} 25... Qc3 {[%clk 0:00:20.6]} 26. Qxb7 {[%clk 0:00:23.7]}
26... Bxg3 {[%clk 0:00:19.1]} 27. Bxe7 {[%clk 0:00:19.3]} 27... Bf4 {[%clk
0:00:13.7]} 28. Bb4 {[%clk 0:00:16.4]} 28... Qxh3 {[%clk 0:00:10.7]} 29. Rxe8+
{[%clk 0:00:15.2]} 29... Kh7 {[%clk 0:00:11.1]} 30. Qe4+ {[%clk 0:00:12.9]}
30... g6 {[%clk 0:00:11.2]} 31. Re7+ {[%clk 0:00:10.9]} 31... Kg8 {[%clk
0:00:07.9]} 32. Qxg6+ {[%clk 0:00:08]} 1-0

[Event "*** Titled Tuesday Blitz"]
[Site "Chess.com"]
[Date "2021.04.27"]
[Round "7"]
[White "Nozdrachev_Leonid"]
[Black "Ibrayevnb"]
[Result "1-0"]
[WhiteElo "2616"]
[BlackElo "2475"]
[TimeControl "180+1"]
[EndTime "11:16:46 PDT"]
[Termination "Nozdrachev_Leonid won on time"]

1. e4 {[%clk 0:03:00.9]} 1... c5 {[%clk 0:02:59.3]} 2. c3 {[%clk 0:03:00.6]}
2... Nf6 {[%clk 0:02:58.5]} 3. e5 {[%clk 0:03:00.5]} 3... Nd5 {[%clk 0:02:58.8]}
4. d4 {[%clk 0:02:59.8]} 4... cxd4 {[%clk 0:02:59.1]} 5. Nf3 {[%clk 0:03:00.4]}
5... e6 {[%clk 0:02:59.3]} 6. cxd4 {[%clk 0:03:00.3]} 6... b6 {[%clk 0:02:59.4]}
7. a3 {[%clk 0:02:56.2]} 7... Be7 {[%clk 0:02:55.4]} 8. Bd3 {[%clk 0:02:47.4]}
8... Ba6 {[%clk 0:02:54.9]} 9. Bxa6 {[%clk 0:02:45.1]} 9... Nxa6 {[%clk
0:02:54.7]} 10. O-O {[%clk 0:02:46]} 10... O-O {[%clk 0:02:54.2]} 11. Nbd2
{[%clk 0:02:44.2]} 11... d6 {[%clk 0:02:49.4]} 12. Ne4 {[%clk 0:02:39.4]} 12...
dxe5 {[%clk 0:02:49.4]} 13. Nxe5 {[%clk 0:02:40.3]} 13... Nac7 {[%clk
0:02:24.5]} 14. Bd2 {[%clk 0:02:36.8]} 14... Nb5 {[%clk 0:02:12.9]} 15. Be3
{[%clk 0:02:20.2]} 15... Nd6 {[%clk 0:01:58]} 16. Qd3 {[%clk 0:02:05.9]} 16...
Nxe4 {[%clk 0:01:51.9]} 17. Qxe4 {[%clk 0:02:06.8]} 17... Rc8 {[%clk 0:01:51.7]}
18. Rac1 {[%clk 0:02:04.2]} 18... Qd6 {[%clk 0:01:45.8]} 19. g3 {[%clk 0:01:59]}
19... a6 {[%clk 0:01:38.2]} 20. h4 {[%clk 0:01:55.6]} 20... Nxe3 {[%clk
0:01:22.4]} 21. fxe3 {[%clk 0:01:39.9]} 21... f6 {[%clk 0:01:21.9]} 22. Rxc8
{[%clk 0:01:22.1]} 22... Rxc8 {[%clk 0:01:20.3]} 23. Qb7 {[%clk 0:01:06.2]}
23... Rf8 {[%clk 0:01:13.4]} 24. Nf3 {[%clk 0:00:45.4]} 24... Qxg3+ {[%clk
0:01:12.5]} 25. Kh1 {[%clk 0:00:45.5]} 25... Bd6 {[%clk 0:00:56.2]} 26. Qxa6
{[%clk 0:00:44.6]} 26... Qh3+ {[%clk 0:00:47.5]} 27. Kg1 {[%clk 0:00:44.3]}
27... Qg3+ {[%clk 0:00:46.8]} 28. Kh1 {[%clk 0:00:44.1]} 28... e5 {[%clk
0:00:43.1]} 29. Qc4+ {[%clk 0:00:28.4]} 29... Kh8 {[%clk 0:00:42.4]} 30. Qe6
{[%clk 0:00:22.9]} 30... exd4 {[%clk 0:00:36.6]} 31. exd4 {[%clk 0:00:22.3]}
31... f5 {[%clk 0:00:15.9]} 32. b4 {[%clk 0:00:11.8]} 32... f4 {[%clk
0:00:04.5]} 33. Qxd6 {[%clk 0:00:09]} 33... Qh3+ {[%clk 0:00:03.7]} 34. Nh2
{[%clk 0:00:08.9]} 1-0

[Event "*** Titled Tuesday Blitz"]
[Site "Chess.com"]
[Date "2021.04.27"]
[Round "7"]
[White "Kildepiotr"]
[Black "MikeSailer"]
[Result "1-0"]
[WhiteElo "2615"]
[BlackElo "2189"]
[TimeControl "180+1"]
[EndTime "11:16:46 PDT"]
[Termination "Kildepiotr won by resignation"]

1. Nf3 {[%clk 0:03:00.9]} 1... d5 {[%clk 0:02:59.8]} 2. g3 {[%clk 0:03:00.3]}
2... Nf6 {[%clk 0:03:00.3]} 3. Bg2 {[%clk 0:03:00.6]} 3... Bf5 {[%clk
0:03:00.8]} 4. O-O {[%clk 0:03:00.8]} 4... e6 {[%clk 0:03:01.6]} 5. d3 {[%clk
0:03:01.4]} 5... Be7 {[%clk 0:03:02.3]} 6. Nbd2 {[%clk 0:03:02.1]} 6... O-O
{[%clk 0:03:02.9]} 7. Qe1 {[%clk 0:03:02.6]} 7... h6 {[%clk 0:03:03.5]} 8. e4
{[%clk 0:03:03.1]} 8... Bh7 {[%clk 0:03:04]} 9. Qe2 {[%clk 0:03:03.3]} 9... c5
{[%clk 0:03:04.4]} 10. Ne5 {[%clk 0:03:01]} 10... Nc6 {[%clk 0:03:04]} 11. Nxc6
{[%clk 0:02:59.8]} 11... bxc6 {[%clk 0:03:04.7]} 12. f4 {[%clk 0:02:59.8]} 12...
a5 {[%clk 0:03:03.7]} 13. f5 {[%clk 0:02:59.9]} 13... a4 {[%clk 0:03:02.7]} 14.
a3 {[%clk 0:02:57.3]} 14... c4 {[%clk 0:02:54.3]} 15. fxe6 {[%clk 0:02:55.8]}
15... fxe6 {[%clk 0:02:49.7]} 16. dxc4 {[%clk 0:02:55.7]} 16... dxe4 {[%clk
0:02:45.5]} 17. Kh1 {[%clk 0:02:53.7]} 17... Qd4 {[%clk 0:02:28.1]} 18. Re1
{[%clk 0:02:48.3]} 18... Bc5 {[%clk 0:02:18.1]} 19. c3 {[%clk 0:02:43]} 19...
Qd3 {[%clk 0:02:12.7]} 20. Qxd3 {[%clk 0:02:18.1]} 20... exd3 {[%clk 0:02:11.2]}
21. Bxc6 {[%clk 0:02:18.2]} 21... Ra6 {[%clk 0:01:38]} 22. Bf3 {[%clk 0:02:17]}
22... Bf5 {[%clk 0:01:19.6]} 23. Kg2 {[%clk 0:02:15.4]} 23... Ng4 {[%clk
0:01:16.4]} 24. Ne4 {[%clk 0:02:08.2]} 24... Bxe4 {[%clk 0:01:03.6]} 25. Rxe4
{[%clk 0:02:09.1]} 25... Nxh2 {[%clk 0:00:59]} 26. Rf4 {[%clk 0:01:55.6]} 26...
Nxf3 {[%clk 0:00:50.8]} 27. Rxf8+ {[%clk 0:01:54.5]} 27... Kxf8 {[%clk
0:00:48.7]} 28. Kxf3 {[%clk 0:01:55.4]} 28... e5 {[%clk 0:00:47.5]} 29. Be3
{[%clk 0:01:54.9]} 29... Rf6+ {[%clk 0:00:45.4]} 30. Ke4 {[%clk 0:01:54.8]}
30... Bxe3 {[%clk 0:00:38.1]} 31. Kxe3 {[%clk 0:01:55]} 31... e4 {[%clk
0:00:31.9]} 32. Kxe4 {[%clk 0:01:55.2]} 32... Rf2 {[%clk 0:00:16.9]} 33. Rd1
{[%clk 0:01:10]} 33... Rxb2 {[%clk 0:00:16.9]} 34. Rxd3 {[%clk 0:01:09.7]} 34...
Ke7 {[%clk 0:00:14.6]} 35. c5 {[%clk 0:01:09.1]} 35... Rb8 {[%clk 0:00:07.9]}
36. c6 {[%clk 0:01:06.7]} 36... Rc8 {[%clk 0:00:06.1]} 37. Rd7+ {[%clk
0:00:37.6]} 37... Kf6 {[%clk 0:00:06.8]} 38. Kd5 {[%clk 0:00:37.1]} 38... g5
{[%clk 0:00:06.4]} 39. c7 {[%clk 0:00:35.5]} 39... h5 {[%clk 0:00:06.7]} 40. Kd6
{[%clk 0:00:35.2]} 40... h4 {[%clk 0:00:07.3]} 41. gxh4 {[%clk 0:00:35.4]} 41...
gxh4 {[%clk 0:00:07.7]} 42. Rd8 {[%clk 0:00:36]} 42... Rxc7 {[%clk 0:00:07.9]}
43. Kxc7 {[%clk 0:00:36.9]} 43... Ke5 {[%clk 0:00:08.7]} 44. Rh8 {[%clk
0:00:36.5]} 44... Kd5 {[%clk 0:00:09.5]} 45. Rxh4 {[%clk 0:00:36.5]} 1-0